bitfinex/quotes_SOLUSD_20260203
["timestamp","ask_amount","ask_price","bid_price","bid_amount"]
[1770133933835,6.88182358,101.99,101.95,16.69014498]
[1770133934128,6.88182358,101.99,101.95,9.8083214]
[1770133934324,6.88182358,101.99,101.95,13.99340567]
[1770133934705,6.88182358,101.99,101.95,20.87522925]
[1770133934910,6.88182358,101.99,101.95,13.99340567]
[1770133935124,6.88182358,101.98,101.95,13.99340567]
[1770133935305,6.88182358,101.97,101.93,4.28508427]
[1770133935506,6.88182358,101.96,101.93,0.1]
[1770133935826,6.88182358,101.96,101.93,9.91056279]
[1770133936218,6.88182358,101.95,101.93,0.1]
[1770133936410,6.88182358,101.94,101.9,13.99824548]
[1770133936734,6.88182358,101.93,101.9,13.99824548]
[1770133937229,11.19539434,101.93,101.9,9.81347248]
[1770133937426,11.19539434,101.93,101.89,9.81415876]
[1770133937631,11.19539434,101.93,101.88,20.88181652]
[1770133937927,11.19539434,101.93,101.89,9.81420311]
[1770133938153,27.22,101.96,101.92,11.06690785]
[1770133938430,6.88182358,101.97,101.93,4.18508427]
[1770133938639,41.33782015,102.0,101.94,11.06690785]
[1770133938808,41.33782015,102.0,101.9,112.85565614]
[1770133938809,11.19539434,102.0,101.96,6.88182358]
[1770133939004,6.88182358,101.99,101.95,13.99329973]
[1770133939316,4.31357076,101.98,101.94,6.88182358]
[1770133939508,11.19539434,101.99,101.95,9.80833453]
[1770133940430,6.88182358,101.98,101.94,9.80946977]
[1770133940733,11.19539434,101.99,101.95,9.80860903]
[1770133940932,6.88182358,101.98,101.93,20.87724693]
[1770133941235,6.88182358,101.97,101.93,20.87724693]
[1770133941423,6.88182358,101.96,101.92,16.69316061]
[1770133941729,6.88182358,101.97,101.93,9.81000761]
[1770133942518,20.98103117,101.98,101.93,16.69183119]
[1770133942718,6.88182358,101.97,101.93,16.69183119]
[1770133942929,20.98103117,101.98,101.93,13.91205697]
[1770133943109,6.88182358,101.94,101.9,16.69500117]
[1770133943306,6.88182358,101.94,101.89,4.10204936]
[1770133943307,6.88182358,101.92,101.89,9.81430296]
[1770133944332,6.88182358,101.92,101.88,9.81509314]
[1770133944636,8.56826436,101.96,101.91,13.91462908]
[1770133944818,6.88182358,101.95,101.91,13.91462908]
[1770133945216,6.88182358,101.92,101.88,6.88182358]
[1770133945422,6.88182358,101.92,101.89,9.81403304]
[1770133945623,65.86438873,101.95,101.9,9.81327495]
[1770133945824,6.88182358,101.93,101.89,9.81421953]
[1770133946220,11.17481709,101.94,101.9,9.81277892]
[1770133946420,6.88182358,101.93,101.9,9.81277892]
[1770133947122,6.88182358,101.93,101.89,13.91631414]
[1770133947334,6.88182358,101.94,101.9,10.98387294]
[1770133947737,37.0492827,101.95,101.9,10.98387294]
[1770133947738,27.24,101.95,101.91,10.98387294]
[1770133947925,27.24,101.95,101.92,6.88182358]
[1770133948120,27.24,101.95,101.91,10.98387294]
[1770133948321,11.17481709,101.96,101.91,10.98387294]
[1770133948521,6.88182358,101.95,101.91,4.10204936]
[1770133948723,14.10086852,101.96,101.91,10.98387294]
[1770133948920,20.9826921,101.96,101.91,10.98387294]
[1770133949159,6.88182358,101.94,101.9,10.98387294]
[1770133949446,6.88182358,101.94,101.9,13.91484658]
[1770133949658,6.88182358,101.95,101.91,4.10204936]
[1770133949826,16.69067111,101.95,101.9,41.22847752]
[1770133950027,11.17481709,101.95,101.9,41.22847752]
[1770133950248,6.88182358,101.94,101.9,41.22847752]
[1770133950452,6.88182358,101.93,101.9,9.81279722]
[1770133950829,4.29299351,101.94,101.89,13.91606534]
[1770133950830,6.88182358,101.92,101.89,13.91606534]
[1770133951025,6.88182358,101.92,101.87,0.3144201]
[1770133951026,6.88182358,101.92,101.87,11.29829304]
[1770133951244,6.88182358,101.91,101.88,9.81510525]
[1770133951945,6.88182358,101.93,101.89,4.10204936]
[1770133952131,6.88182358,101.93,101.89,10.98387294]
[1770133952324,6.88182358,101.93,101.89,4.10204936]
[1770133952520,6.94537215,101.92,101.88,41.29915034]
[1770133952761,6.94537215,101.89,101.83,4.10204936]
[1770133952959,6.94537215,101.91,101.87,20.86361883]
[1770133953138,6.94537215,101.92,101.88,4.10204936]
[1770133953454,25.32387851,101.94,101.89,11.04742151]
[1770133953625,15.51363651,101.94,101.9,9.81354268]
[1770133954034,6.94537215,101.93,101.89,13.91642551]
[1770133954255,6.94537215,101.92,101.88,16.76019656]
[1770133954748,6.94537215,101.92,101.89,9.81435324]
[1770133954947,4.29299351,101.95,101.91,6.94537215]
[1770133955127,16.75363833,101.96,101.91,11.04742151]
[1770133955441,6.94537215,101.95,101.91,4.10204936]
[1770133955949,6.94537215,101.97,101.92,11.04742151]
[1770133956140,6.94537215,101.99,101.94,4.10204936]
[1770133956326,6.94537215,101.99,101.95,6.94537215]
[1770133956526,27.26,102.0,101.97,6.94537215]
[1770133956932,27.26,102.0,101.98,6.94537215]
[1770133957126,31.55299351,102.0,101.96,6.94537215]
[1770133957330,27.26,102.0,101.96,11.04742151]
[1770133957953,6.94537215,101.99,101.96,4.10204936]
[1770133958642,37.06441246,102.0,101.94,20.85655218]
[1770133958643,65.86720989,102.0,101.94,20.85655218]
[1770133958836,6.94537215,101.99,101.94,11.04742151]
[1770133959225,6.94537215,101.97,101.93,6.94537215]
[1770133959451,6.94537215,101.96,101.92,20.8585985]
[1770133959636,6.94537215,101.94,101.91,9.81253681]
[1770133959953,6.94537215,101.92,101.88,13.91706836]
[1770133960149,6.94537215,101.92,101.86,13.91896192]
[1770133960150,6.94537215,101.89,101.86,13.91896192]
[1770133960451,6.94537215,101.9,101.87,9.81628735]
[1770133960934,6.94537215,101.9,101.86,13.91907906]
[1770133961138,6.94537215,101.94,101.89,11.04742151]
[1770133961437,16.75410191,101.95,101.9,11.04742151]
[1770133961838,16.75410191,101.95,101.91,9.81257972]
[1770133962038,16.75410191,101.95,101.91,16.75795187]
[1770133962238,6.94537215,101.95,101.91,16.75795187]
[1770133962433,6.94537215,101.92,101.88,13.91689443]
[1770133962652,6.94537215,101.91,101.88,13.91689443]
[1770133962952,6.94537215,101.89,101.85,9.81836033]
[1770133963255,6.94537215,101.89,101.85,20.86578184]
[1770133963546,6.94537215,101.89,101.85,13.92040969]
[1770133963745,6.94537215,101.88,101.85,13.92040969]
[1770133963951,8.56826436,101.92,101.87,11.04742151]
[1770133964133,6.94537215,101.91,101.87,4.10204936]
[1770133965263,6.94537215,101.89,101.85,11.04742151]
[1770133965455,11.23836566,101.9,101.86,9.81689833]
[1770133966031,6.94537215,101.9,101.86,9.81689833]
[1770133966432,45.63991929,101.92,101.87,9.81599839]
[1770133966648,48.29229793,101.92,101.87,20.8634199]
[1770133966852,6.94537215,101.91,101.87,13.91804775]
[1770133967157,52.58529144,101.92,101.87,13.91804775]
[1770133967355,52.58529144,101.92,101.87,20.8634199]
[1770133967557,6.94537215,101.91,101.87,13.91804775]
[1770133967750,16.75802691,101.91,101.87,9.81599839]
[1770133967948,6.94537215,101.91,101.87,34.35708016]
[1770133969039,6.94537215,101.93,101.89,4.10204936]
[1770133969239,21.04851214,101.94,101.89,11.04742151]
[1770133969857,48.28963984,101.95,101.9,11.04742151]
[1770133970245,6.94537215,101.94,101.9,4.10204936]
[1770133970946,52.58263335,101.95,101.9,11.04742151]
[1770133972463,20.89895225,101.97,101.92,11.055148]
[1770133972641,6.94537215,101.94,101.89,4.10977585]
[1770133972839,6.94537215,101.92,101.89,13.92363856]
[1770133973560,6.94537215,101.91,101.88,9.81501432]
[1770133973749,6.94537215,101.91,101.89,9.81447222]
[1770133973946,6.94537215,101.94,101.9,14.10573724]
[1770133974251,6.94537215,101.99,101.94,4.29238738]
[1770133974458,11.29034278,101.99,101.94,21.04673965]
[1770133974845,6.94537215,101.98,101.94,14.1013675]
[1770133975048,6.94537215,101.97,101.93,16.75561995]
[1770133975258,11.29034278,101.98,101.94,9.80963185]
[1770133975457,11.29034278,101.98,101.93,21.04796572]
[1770133975961,6.94537215,101.96,101.93,4.29238738]
[1770133976261,6.94537215,101.97,101.93,4.29238738]
[1770133976462,16.75248393,101.97,101.93,14.10295746]
[1770133977162,6.94537215,101.99,101.94,11.23775953]
[1770133978158,6.94537215,101.98,101.94,4.29238738]
[1770133978671,16.75041413,101.99,101.95,9.80872976]
[1770133978872,4.34497063,102.04,101.97,11.23775953]
[1770133979053,6.94537215,102.02,101.97,11.23775953]
[1770133979645,6.94537215,102.01,101.97,4.29238738]
[1770133979875,6.94537215,102.0,101.97,4.29238738]
[1770133980164,6.94537215,102.01,101.97,4.29238738]
[1770133980544,6.94537215,101.99,101.95,38.62294156]
[1770133980747,6.94537215,102.0,101.96,4.29238738]
[1770133980949,6.94537215,102.04,102.0,4.29238738]
[1770133981346,11.29034278,102.01,101.96,4.29238738]
[1770133981564,6.94537215,101.98,101.94,4.29238738]
[1770133982242,6.94537215,101.98,101.95,14.1008367]
[1770133982444,6.94537215,101.99,101.95,14.1008367]
[1770133983048,34.20537215,102.01,101.97,4.29238738]
[1770133983254,6.94537215,102.02,101.98,4.29238738]
[1770133983454,6.94537215,102.01,101.98,4.29238738]
[1770133983658,6.94537215,101.99,101.96,4.29238738]
[1770133983855,6.94537215,101.98,101.96,4.29238738]
[1770133984050,6.94537215,101.97,101.94,4.29238738]
[1770133984263,6.94537215,101.96,101.94,4.29238738]
[1770133984648,6.94537215,101.98,101.94,14.10202355]
[1770133985561,6.94537215,101.98,101.94,38.62625348]
[1770133985872,4.27527085,102.0,101.96,4.29238738]
[1770133985873,21.02481435,102.0,101.96,4.29238738]
[1770133986463,6.94537215,101.98,101.95,4.29238738]
[1770133986874,6.94537215,101.98,101.93,6.94537215]
[1770133986875,6.94537215,101.97,101.94,9.8091549]
[1770133987057,16.75153705,101.98,101.94,14.10154228]
[1770133987261,4.27527085,102.0,101.92,29.88861347]
[1770133987262,21.02502128,102.0,101.96,4.29238738]
[1770133987449,28.84941196,102.03,101.98,4.29238738]
[1770133987646,16.74680102,102.03,101.99,4.29238738]
[1770133988872,6.94537215,102.02,101.98,14.09783137]
[1770133989349,6.94537215,102.02,101.98,4.29238738]
[1770133989550,6.94537215,102.06,102.02,4.29238738]
[1770133989767,6.94537215,102.06,102.02,11.23775953]
[1770133990152,6.94537215,102.06,102.02,4.29238738]
[1770133990469,6.94537215,102.06,101.99,4.29238738]
[1770133990470,6.94537215,102.03,101.99,4.29238738]
[1770133990772,6.94537215,102.0,101.97,4.29238738]
[1770133990974,6.94537215,101.98,101.95,14.1007403]
[1770133991270,34.18537215,102.01,101.97,14.0991933]
[1770133991481,6.94537215,102.04,102.0,4.29238738]
[1770133991654,11.29034278,102.06,102.01,11.23775953]
[1770133991975,11.29034278,102.06,102.02,6.94537215]
[1770133992180,21.08852929,102.06,102.02,6.94537215]
[1770133992378,21.08852929,102.06,102.01,11.23775953]
[1770133993163,21.08852929,102.06,102.02,9.8019996]
[1770133994777,0.2,102.07,102.03,11.23775953]
[1770133994955,1e-08,102.09,102.07,4.29238738]
[1770133995152,1e-08,102.09,102.07,14.08883917]
[1770133995356,1e-08,102.09,102.07,14.08936666]
[1770133996080,1e-08,102.09,102.07,4.29238738]
[1770133996572,1e-08,102.09,102.07,21.03489618]
[1770133996777,1e-08,102.09,102.07,14.08952403]
[1770133997858,1e-08,102.09,102.07,4.29238738]
[1770133998056,1e-08,102.09,102.07,14.08942992]
[1770133998299,21.08312895,102.12,102.07,21.03480207]
[1770133998459,11.29034278,102.12,102.07,45.52779707]
[1770133998787,27.44,102.13,102.1,11.23775953]
[1770133998976,27.44,102.13,102.1,4.29238738]
[1770133999280,0.2,102.13,102.1,4.29238738]
[1770133999580,6.94537215,102.12,102.07,45.52779707]
[1770133999956,6.94537215,102.12,102.08,11.23775953]
[1770134000162,0.2,102.13,102.09,4.29238738]
[1770134000359,14.13260718,102.17,102.13,4.32813856]
[1770134000558,14.13260718,102.17,102.12,6.94537215]
[1770134000559,21.07797933,102.17,102.12,6.94537215]
[1770134000859,21.07797933,102.17,102.12,11.27351071]
[1770134001078,11.22639085,102.16,102.11,6.94537215]
[1770134001283,11.22639085,102.16,102.11,11.27351071]
[1770134001461,48.25329923,102.18,102.13,11.27351071]
[1770134001780,48.25329923,102.18,102.13,16.73621609]
[1770134001957,11.22639085,102.17,102.12,11.27351071]
[1770134002160,34.18537215,102.18,102.14,9.79042704]
[1770134002372,27.24,102.18,102.14,21.06393775]
[1770134002678,6.94537215,102.17,102.14,14.1185656]
[1770134002877,6.94537215,102.16,102.13,9.79102483]
[1770134003260,6.94537215,102.16,102.13,4.32813856]
[1770134003459,6.94537215,102.17,102.13,14.1190856]
[1770134003670,6.94537215,102.16,102.13,14.1190856]
[1770134003959,6.94537215,102.15,102.11,35.75514835]
[1770134004156,6.94537215,102.16,102.12,14.12004707]
[1770134004359,6.94537215,102.16,102.12,21.06541922]
[1770134004975,27.22,102.18,102.14,4.32813856]
[1770134005287,21.01058463,102.21,102.16,6.94537215]
[1770134005575,6.94537215,102.2,102.15,11.27351071]
[1770134006083,11.22639085,102.21,102.16,21.06207766]
[1770134006376,62.67506723,102.27,102.2,4.32813856]
[1770134006377,4.2810187,102.25,102.2,4.32813856]
[1770134006578,4.2810187,102.25,102.21,6.94537215]
[1770134006960,14.06111168,102.25,102.21,6.94537215]
[1770134007478,4.2810187,102.21,102.16,34.25998433]
[1770134007671,6.94537215,102.21,102.16,41.20535648]
[1770134008061,6.94537215,102.22,102.17,6.94537215]
[1770134008283,16.72676613,102.24,102.19,6.94537215]
[1770134008460,11.22639085,102.25,102.2,11.27351071]
[1770134008782,11.22639085,102.23,102.18,11.27351071]
[1770134009082,6.94537215,102.23,102.19,4.32813856]
[1770134009474,14.06105367,102.25,102.2,11.27351071]
[1770134009475,11.22639085,102.25,102.2,11.27351071]
[1770134009774,6.94537215,102.24,102.2,4.32813856]
[1770134009985,6.94537215,102.22,102.18,4.32813856]
[1770134010180,6.94537215,102.22,102.18,14.11393545]
[1770134010367,6.94537215,102.21,102.18,14.11393545]
[1770134010572,21.00871482,102.23,102.18,21.0593076]
[1770134010968,21.00871482,102.23,102.18,45.52593512]
[1770134011174,6.94537215,102.22,102.18,14.11393545]
[1770134011487,6.94537215,102.2,102.17,9.78751721]
[1770134011870,6.94537215,102.21,102.17,14.11565577]
[1770134012275,6.94537215,102.21,102.17,21.06102792]
[1770134012470,20.97112324,102.22,102.17,21.02246547]
[1770134012679,6.9068097,102.2,102.17,14.11565577]
[1770134012871,6.9068097,102.19,102.15,14.11696868]
[1770134013187,11.1878284,102.2,102.16,9.78802779]
[1770134013373,11.1878284,102.2,102.16,16.69483749]
[1770134013571,11.1878284,102.2,102.16,9.78802779]
[1770134013884,6.9068097,102.22,102.18,4.32813856]
[1770134014084,11.1878284,102.28,102.22,4.32813856]
[1770134014288,4.2810187,102.26,102.22,16.68957161]
[1770134014485,4.2810187,102.26,102.21,24.45788972]
[1770134014486,6.9068097,102.25,102.21,14.11135569]
[1770134014693,6.9068097,102.25,102.21,21.01816539]
[1770134015077,11.1878284,102.26,102.22,16.6893222]
[1770134015275,11.1878284,102.26,102.22,9.7825125]
[1770134016105,6.9068097,102.24,102.2,6.9068097]
[1770134016267,6.9068097,102.24,102.2,21.01915927]
[1770134016474,20.96848405,102.25,102.2,45.4809988]
[1770134017195,6.9068097,102.24,102.2,14.11234957]
[1770134017497,11.1878284,102.23,102.2,9.78470144]
[1770134017798,20.96848405,102.25,102.2,21.0196497]
[1770134018388,11.1878284,102.23,102.19,9.78541141]
[1770134018584,11.1878284,102.23,102.19,14.11354997]
[1770134019000,16.68777047,102.24,102.2,14.1124223]
[1770134019374,6.9068097,102.23,102.2,4.32813856]
[1770134019682,6.9068097,102.23,102.2,9.78467182]
[1770134020270,16.68869329,102.23,102.19,21.02016853]
[1770134020474,6.9068097,102.2,102.15,28.8014877]
[1770134020678,6.9068097,102.18,102.14,9.79033228]
[1770134020895,6.9068097,102.18,102.08,39.18320051]
[1770134020896,6.9068097,102.15,102.11,4.32813856]
[1770134021195,6.9068097,102.15,102.12,9.79227593]
[1770134021488,6.9068097,102.14,102.12,9.79227593]
[1770134021893,6.9068097,102.14,102.11,38.60296501]
[1770134022195,6.9068097,102.14,102.11,14.12099658]
[1770134022498,6.9068097,102.15,102.12,14.12049731]
[1770134023400,16.69610328,102.16,102.12,14.12049731]
[1770134023795,6.9068097,102.17,102.13,4.32813856]
[1770134024187,6.9068097,102.16,102.13,4.32813856]
[1770134024587,6.9068097,102.16,102.13,14.11943963]
[1770134024899,6.9068097,102.17,102.13,14.11943963]
[1770134025277,6.9068097,102.17,102.13,45.50485502]
[1770134025477,6.9068097,102.17,102.13,38.59804532]
[1770134025683,6.9068097,102.16,102.13,14.11943963]
[1770134025889,6.9068097,102.18,102.14,4.32813856]
[1770134026294,11.1878284,102.17,102.13,9.79130107]
[1770134026491,6.9068097,102.15,102.12,9.79207857]
[1770134026701,6.9068097,102.14,102.12,9.79207857]
[1770134026999,6.9068097,102.13,102.11,9.79302064]
[1770134027183,6.9068097,102.15,102.11,11.23494826]
[1770134027708,6.9068097,102.15,102.11,21.02780941]
[1770134027933,6.9068097,102.13,102.09,4.32813856]
[1770134028207,11.1878284,102.1,102.05,4.32813856]
[1770134028414,6.9068097,102.08,102.06,9.79811338]
[1770134028787,6.9068097,102.08,102.02,27.4]
[1770134028788,11.1878284,102.07,102.02,27.4]
[1770134028982,6.9068097,102.07,102.04,9.79919968]
[1770134029203,6.9068097,102.08,102.05,9.79910121]
[1770134029382,6.9068097,102.1,102.06,4.32813856]
[1770134029583,16.70123055,102.1,102.06,4.32813856]
[1770134029805,11.1878284,102.11,102.06,11.23494826]
[1770134030106,4.2810187,102.11,102.07,6.9068097]
[1770134030345,11.18208055,102.12,102.07,11.23494826]
[1770134030609,6.9068097,102.11,102.07,21.03127915]
[1770134030804,10.81386979,102.12,102.08,6.9068097]
[1770134031205,10.81386979,102.12,102.07,21.03127915]
[1770134031406,3.90706009,102.18,102.11,10.9052571]
[1770134031591,6.9068097,102.16,102.12,3.9984474]
[1770134031786,6.9068097,102.17,102.13,10.9052571]
[1770134032107,20.5986056,102.2,102.15,10.9052571]
[1770134032306,20.5986056,102.2,102.11,5.36086188]
[1770134032307,3.90706009,102.18,102.14,6.9068097]
[1770134032509,6.9068097,102.21,102.16,10.9052571]
[1770134032888,0.1128821,102.22,102.18,10.9052571]
[1770134033089,10.81386979,102.24,102.2,6.9068097]
[1770134033306,6.9068097,102.25,102.21,6.9068097]
[1770134033495,6.9068097,102.22,102.18,3.90826508]
[1770134033805,11.18208055,102.24,102.19,6.9068097]
[1770134034116,6.9068097,102.23,102.18,10.81507478]
[1770134034416,16.69063919,102.21,102.17,3.90826508]
[1770134034720,16.69063919,102.21,102.17,13.69583312]
[1770134034921,6.9068097,102.2,102.17,13.69583312]
[1770134035119,16.69063919,102.21,102.17,13.69583312]
[1770134035301,6.9068097,102.2,102.17,3.90826508]
[1770134035499,6.9068097,102.2,102.17,13.69569548]
[1770134035798,6.9068097,102.2,102.16,9.78819028]
[1770134035996,6.9068097,102.2,102.16,13.69645536]
[1770134037610,4.27527085,102.23,102.19,10.81507478]
[1770134037833,6.9068097,102.23,102.19,10.81507478]
[1770134038416,9.77827602,102.27,102.23,9.78186442]
[1770134038599,20.83681297,102.27,102.22,10.81507478]
[1770134038925,6.9068097,102.26,102.22,10.81507478]
[1770134039116,20.83681297,102.27,102.23,6.9068097]
[1770134039427,20.83681297,102.27,102.22,20.59788019]
[1770134039807,6.9068097,102.24,102.21,9.78333587]
[1770134040015,11.05853695,102.25,102.2,20.59934495]
[1770134040215,11.05853695,102.22,102.16,3.90826508]
[1770134040409,6.9068097,102.21,102.17,45.07024006]
[1770134040615,6.9068097,102.2,102.17,3.90826508]
[1770134040919,6.9068097,102.27,102.22,3.90826508]
[1770134041125,20.83612848,102.28,102.23,6.9068097]
[1770134041327,25.11139933,102.28,102.23,6.9068097]
[1770134041500,20.83531666,102.29,102.24,10.81507478]
[1770134041705,6.9068097,102.28,102.24,10.81507478]
[1770134042098,0.1,102.31,102.27,6.9068097]
[1770134042314,0.1,102.31,102.28,6.9068097]
[1770134042523,9.87421561,102.31,102.27,6.9068097]
[1770134042709,6.9068097,102.29,102.25,20.59460932]
[1770134042911,6.9068097,102.29,102.25,13.68806408]
[1770134043220,6.9068097,102.29,102.25,10.81507478]
[1770134043413,6.9068097,102.29,102.25,3.90826508]
[1770134043414,6.9068097,102.26,102.25,3.90826508]
[1770134043620,11.05853695,102.26,102.21,9.78324828]
[1770134043801,6.9068097,102.25,102.21,9.78324828]
[1770134044123,6.9068097,102.25,102.2,41.15317918]
[1770134044428,11.05853695,102.26,102.21,6.9068097]
[1770134044726,11.05853695,102.26,102.22,9.78282136]
[1770134045110,6.9068097,102.26,102.22,16.68963106]
[1770134045425,6.9068097,102.27,102.23,6.9068097]
[1770134045724,6.9068097,102.29,102.25,10.81507478]
[1770134045939,13.92727881,102.3,102.25,10.81507478]
[1770134046230,6.9068097,102.28,102.23,10.81507478]
[1770134046433,6.9068097,102.26,102.22,45.05494955]
[1770134046639,6.9068097,102.25,102.21,9.78377849]
[1770134046815,6.9068097,102.23,102.2,9.78437645]
[1770134047011,4.15172725,102.24,102.2,9.78452675]
[1770134047223,6.9068097,102.24,102.2,13.69279183]
[1770134047423,6.9068097,102.27,102.22,16.17593666]
[1770134047624,20.83386669,102.3,102.25,10.81507478]
[1770134047806,6.9068097,102.28,102.23,3.90826508]
[1770134048010,6.9068097,102.26,102.22,37.99507478]
[1770134048226,6.9068097,102.26,102.22,31.08826508]
[1770134048605,14.02679526,102.31,102.24,3.90826508]
[1770134048830,14.02679526,102.31,102.23,6.9068097]
[1770134048831,0.1,102.31,102.27,10.81507478]
[1770134049134,20.93300743,102.31,102.26,10.81507478]
[1770134049335,11.15853695,102.31,102.26,10.81507478]
[1770134049626,6.9068097,102.3,102.26,10.81507478]
[1770134050422,11.05853695,102.29,102.25,9.7799511]
[1770134050630,6.9068097,102.28,102.25,9.7799511]
[1770134051014,11.05853695,102.26,102.21,24.45836035]
[1770134051318,6.9068097,102.26,102.23,9.78128177]
[1770134051519,13.92907777,102.28,102.24,9.78073325]
[1770134051732,6.9068097,102.25,102.21,6.9068097]
[1770134051933,6.9068097,102.25,102.22,9.78275599]
[1770134052126,6.9068097,102.26,102.23,9.78173693]
[1770134052323,6.9068097,102.27,102.23,9.78173693]
[1770134052516,6.9068097,102.26,102.23,9.78173693]
[1770134052717,6.9068097,102.27,102.24,9.78077056]
[1770134053513,6.9068097,102.25,102.22,38.14671335]
[1770134053740,4.15172725,102.27,102.23,9.78111905]
[1770134054034,20.83666677,102.27,102.23,9.78111905]
[1770134054235,6.9068097,102.26,102.23,9.78111905]
[1770134054737,6.9068097,102.27,102.23,38.14404518]
[1770134055136,6.9068097,102.27,102.23,45.05085488]
[1770134055339,6.9068097,102.27,102.23,38.14404518]
[1770134055815,16.68493826,102.27,102.23,13.68938413]
[1770134056019,6.9068097,102.25,102.21,28.36600618]
[1770134056344,13.92923609,102.28,102.23,20.59678207]
[1770134056519,11.05853695,102.28,102.24,10.81507478]
[1770134056716,20.83585824,102.28,102.24,3.90826508]
[1770134056936,6.9068097,102.27,102.24,3.90826508]
[1770134057120,11.05853695,102.28,102.25,9.7799511]
[1770134057317,14.05189152,102.29,102.25,13.68821618]
[1770134057318,6.9068097,102.29,102.25,13.68821618]
[1770134057520,20.83408721,102.3,102.25,20.59502588]
[1770134057829,11.05853695,102.3,102.26,6.9068097]
[1770134058238,7.0068097,102.31,102.27,3.90826508]
[1770134058533,16.78119956,102.31,102.27,3.90826508]
[1770134058735,20.93292681,102.31,102.26,10.81507478]
[1770134058922,7.0068097,102.31,102.27,10.81507478]
[1770134059125,0.1,102.31,102.27,10.81507478]
[1770134059325,0.1,102.31,102.28,9.77708251]
[1770134059728,11.15853695,102.31,102.27,9.77756637]
[1770134059941,1e-08,102.31,102.3,10.81507478]
[1770134060239,0.1,102.34,102.3,10.81507478]
[1770134061146,11.14365838,102.34,102.3,10.81507478]
[1770134061327,0.1,102.34,102.3,10.81507478]
[1770134061528,0.1,102.34,102.31,9.77421561]
[1770134062136,4.23684868,102.34,102.31,9.77421561]
[1770134062335,8.41211953,102.32,102.28,13.91101838]
[1770134062528,6.9068097,102.33,102.3,9.77511744]
[1770134062729,11.14365838,102.34,102.3,9.77511744]
[1770134063147,6.9068097,102.33,102.29,34.21534188]
[1770134063346,11.04365838,102.33,102.28,11.04117563]
[1770134063647,20.81658229,102.33,102.29,9.77607372]
[1770134064347,24.52875795,102.34,102.32,11.04117563]
[1770134064348,1e-08,102.34,102.32,11.04117563]
[1770134064525,13.90576169,102.37,102.33,6.9068097]
[1770134064730,4.13684868,102.37,102.34,6.9068097]
[1770134065042,7.2212298,102.38,102.35,6.9068097]
[1770134065043,0.3144201,102.38,102.35,6.9068097]
[1770134065262,0.3144201,102.38,102.36,6.9068097]
[1770134065555,0.3144201,102.38,102.35,16.67662783]
[1770134065931,0.3144201,102.38,102.34,20.81202829]
[1770134066137,0.3144201,102.38,102.35,9.77021737]
[1770134066337,11.04365838,102.37,102.32,11.04117563]
[1770134066526,6.9068097,102.37,102.32,11.04117563]
[1770134066733,11.35807848,102.38,102.34,9.77067996]
[1770134067032,6.9068097,102.37,102.33,20.81302517]
[1770134067862,11.35807848,102.38,102.34,6.9068097]
[1770134068941,11.04365838,102.36,102.32,9.77281502]
[1770134069251,11.04365838,102.36,102.32,9.77277607]
[1770134069451,4.13684868,102.36,102.33,9.77218806]
[1770134069633,6.9068097,102.37,102.33,9.77218806]
[1770134069826,20.81285291,102.37,102.33,9.77218806]
[1770134070029,6.9068097,102.36,102.32,20.81398552]
[1770134070946,20.81285291,102.37,102.32,20.81398552]
[1770134071154,20.81285291,102.37,102.32,45.24713641]
[1770134071749,11.04365838,102.35,102.31,9.77420851]
[1770134071951,20.81429015,102.35,102.31,16.68101821]
[1770134072248,11.04365838,102.34,102.3,13.90906504]
[1770134072452,11.04365838,102.34,102.3,20.81587474]
[1770134072855,11.04365838,102.33,102.29,9.77593971]
[1770134073150,11.04365838,102.35,102.31,6.9068097]
[1770134073357,11.04365838,102.35,102.3,20.81588799]
[1770134073670,6.9068097,102.36,102.31,4.13436593]
[1770134073957,25.08756652,102.37,102.33,9.77230528]
[1770134074153,6.9068097,102.36,102.32,20.81397779]
[1770134074532,25.06726694,102.37,102.32,45.2268291]
[1770134074733,0.3144201,102.38,102.36,6.88651012]
[1770134074938,6.88651012,102.41,102.37,6.88651012]
[1770134074939,20.78803776,102.41,102.37,6.88651012]
[1770134075451,11.0233588,102.41,102.37,6.88651012]
[1770134075645,4.13684868,102.41,102.38,6.88651012]
[1770134075844,4.13684868,102.41,102.38,16.65400394]
[1770134076056,4.13684868,102.41,102.38,9.76749382]
[1770134076253,4.13684868,102.42,102.38,16.65400394]
[1770134076552,4.13684868,102.42,102.38,9.76749382]
[1770134076755,11.0233588,102.42,102.38,9.76749382]
[1770134077055,11.0233588,102.43,102.38,45.20720167]
[1770134077960,9.76251907,102.44,102.38,9.76749382]
[1770134077961,20.78740281,102.42,102.38,9.76749382]
[1770134078141,11.0233588,102.42,102.38,9.76749382]
[1770134078345,11.0233588,102.42,102.38,16.65400394]
[1770134078532,20.7872701,102.42,102.38,9.76749382]
[1770134078743,4.13684868,102.41,102.36,5.36086188]
[1770134078936,18.17583629,102.43,102.38,11.02087605]
[1770134079244,4.13684868,102.42,102.39,6.88651012]
[1770134079754,9.76224058,102.44,102.4,6.88651012]
[1770134079755,4.13684868,102.44,102.4,6.88651012]
[1770134079953,11.0233588,102.43,102.39,9.76657876]
[1770134080160,4.13684868,102.43,102.39,16.65308888]